Workbook

Sheet Summary
F1: LIBOR transition on the PM26 Libor Linked Assets
F2: The Paragon Mortgages (2010) Limited originated mortgages transitioned to a term SONIA basis on 1st July 2021. Please see the below link for further details.
A3: Paragon Mortgages (No.26) PLC | F3: libor-mortgages-transition-july-19 (paragonbankinggroup.co.uk)
A5: Information as at the Principal Determination Date | B5: 2019-10-31 | C5: 2020-01-31 | D5: 2020-04-30 | E5: 2020-07-31 | F5: 2020-10-30 | G5: 2021-01-29 | H5: 2021-04-30 | I5: 2021-07-30 | J5: 2021-10-29 | K5: 2022-01-31 | L5: 2022-04-29 | M5: 2022-07-29 | N5: 2022-10-31 | O5: 2023-01-31 | P5: 2023-04-28 | Q5: 2023-07-31 | R5: 2023-10-31 | S5: 2024-01-31 | T5: 2024-04-30
A6: Mortgage Asset Balance | B6: 556346.4263 | C6: 523101 | D6: 499563.6724 | E6: 478502.0777 | F6: 460698.2175 | G6: 450397.9681 | H6: 440297.6055 | I6: 423631 | J6: =411599.97365+1 -> 411600.9736 | K6: 401942.3173 | L6: 391508.2566 | M6: 348626.2131 | N6: 290962.9616 | O6: =277351.71256-1 -> 277350.7126 | P6: 269442.5332 | Q6: 264903.1621 | R6: 257511.8068 | S6: 253211.8442 | T6: 248519.0852
A7: Mandatory Further Advance Prefunding Reserve | B7: 383 | C7: 383 | D7: 192 | E7: 0 | F7: 0 | G7: 0 | H7: 0 | I7: 0 | J7: 0 | K7: 0 | L7: 0 | M7: 0 | N7: 0 | O7: 0 | P7: 0 | Q7: 0 | R7: 0 | S7: 0 | T7: 0
A8: Available Principal Cash | B8: 4 | C8: 0 | D8: 2 | E8: 3 | F8: 1 | G8: 1 | H8: 0 | I8: 0 | J8: 0 | K8: 3 | L8: 2 | M8: 2 | N8: 0 | O8: 2 | P8: 3 | Q8: 2 | R8: 4 | S8: 1 | T8: 4
A9: Total Assets | B9: =+B6+B7+B8 -> 556733.4263 | C9: 523484 | D9: 499757.6724 | E9: 478505.0777 | F9: 460699.2175 | G9: 450398.9681 | H9: =+H6+H7+H8 -> 440297.6055 | I9: 423631 | J9: =+J6+J7+J8 -> 411600.9736 | K9: 401945.3173 | L9: =+L6+L7+L8 -> 391510.2566 | M9: 348628.2131 | N9: =+N6+N7+N8 -> 290962.9616 | O9: =+O6+O7+O8 -> 277352.7126 | P9: 269445.5332 | Q9: 264905.1621 | R9: 257515.8068 | S9: 253212.8442 | T9: 248523.0852
A10: Total Notes (Class A1, A2, B, C, D and Z Notes) | B10: =SUM(B11:B16) -> 556733 | C10: 523484 | D10: 499758 | E10: 478505 | F10: =SUM(F11:F16) -> 460699 | G10: 450399 | H10: 440298 | I10: 423631 | J10: =SUM(J11:J16) -> 411601 | K10: =SUM(K11:K16) -> 401945 | L10: =SUM(L11:L16) -> 391510 | M10: =SUM(M11:M16)-1 -> 348628 | N10: =SUM(N11:N16) -> 290963 | O10: =SUM(O11:O16) -> 277353 | P10: =SUM(P11:P16) -> 269446 | Q10: =SUM(Q11:Q16) -> 264905 | R10: =SUM(R11:R16)+1 -> 257516 | S10: =SUM(S11:S16) -> 253213 | T10: =SUM(T11:T16) -> 248523
A11: Class A1 Notes | B11: 321690 | C11: 288441 | D11: 264715 | E11: 243462 | F11: 225656 | G11: 215356 | H11: 205255 | I11: 188588 | J11: 176558 | K11: 166902 | L11: 156467 | M11: 113586 | N11: 55920 | O11: 42310 | P11: 34403 | Q11: 29862 | R11: 22472 | S11: 18170 | T11: 13480
A12: Class A2 Notes | B12: 151540 | C12: 151540 | D12: 151540 | E12: 151540 | F12: 151540 | G12: 151540 | H12: 151540 | I12: 151540 | J12: 151540 | K12: 151540 | L12: 151540 | M12: 151540 | N12: 151540 | O12: 151540 | P12: 151540 | Q12: 151540 | R12: 151540 | S12: 151540 | T12: 151540
A13: Class B Notes | B13: 24741 | C13: 24741 | D13: 24741 | E13: 24741 | F13: 24741 | G13: 24741 | H13: 24741 | I13: 24741 | J13: 24741 | K13: 24741 | L13: 24741 | M13: 24741 | N13: 24741 | O13: 24741 | P13: 24741 | Q13: 24741 | R13: 24741 | S13: 24741 | T13: 24741
A14: Class C Notes | B14: 18555 | C14: 18555 | D14: 18555 | E14: 18555 | F14: 18555 | G14: 18555 | H14: 18555 | I14: 18555 | J14: 18555 | K14: 18555 | L14: 18555 | M14: 18555 | N14: 18555 | O14: 18555 | P14: 18555 | Q14: 18555 | R14: 18555 | S14: 18555 | T14: 18555
A15: Class D Notes | B15: 20102 | C15: 20102 | D15: 20102 | E15: 20102 | F15: 20102 | G15: 20102 | H15: 20102 | I15: 20102 | J15: 20102 | K15: 20102 | L15: 20102 | M15: 20102 | N15: 20102 | O15: 20102 | P15: 20102 | Q15: 20102 | R15: 20102 | S15: 20102 | T15: 20102
A16: Class Z Notes | B16: 20105 | C16: 20105 | D16: 20105 | E16: 20105 | F16: 20105 | G16: 20105 | H16: 20105 | I16: 20105 | J16: 20105 | K16: 20105 | L16: 20105 | M16: 20105 | N16: 20105 | O16: 20105 | P16: 20105 | Q16: 20105 | R16: 20105 | S16: 20105 | T16: 20105
A17: Class A and B Liquidity Reserve Fund (1.50% of the outstanding Class A and B Notes) | B17: =SUM(383489+151540+24741)*1.5% -> 8396.55 | C17: =SUM(B11:B13)*1.5% -> 7469.565 | D17: 6970.83 | E17: 6614.94 | F17: 6296.145 | G17: 6029.055 | H17: =SUM(G11:G13)*1.5% -> 5874.555 | I17: 5723.04 | J17: 5473.035 | K17: 5292.585 | L17: 5147.745 | M17: 4991.22 | N17: 4348.005 | O17: 3483.015 | P17: 3278.865 | Q17: 3160.26 | R17: 3092.145 | S17: 2981.295 | T17: 2916.765
A18: General Reserve Fund (1.50% of the outstanding Class C and D Notes) | B18: =SUM(B14:B15)*1.5% -> 579.855 | C18: =SUM(B14:B15)*1.5% -> 579.855 | D18: 579.855 | E18: 579.855 | F18: 579.855 | G18: 579.855 | H18: 579.855 | I18: 579.855 | J18: 579.855 | K18: 579.855 | L18: 579.855 | M18: 579.855 | N18: 579.855 | O18: 579.855 | P18: 579.855 | Q18: 579.855 | R18: 579.855 | S18: 579.855 | T18: 579.855
A19: Class B, C , D and Z Notes as a % of the Total Notes | B19: =SUM(B13:B16)/B10 -> 0.1499875165 | C19: 0.1595139489 | D19: 0.16708687 | E19: 0.1745081034 | F19: 0.1812528354 | G19: 0.1853978361 | H19: =SUM(H13:H16)/H10 -> 0.1896510999 | I19: =SUM(I13:I16)/I10 -> 0.1971125815 | J19: 0.2028736568 | K19: 0.2077473286 | L19: 0.2132844627 | M19: 0.2395189141 | N19: 0.28698838 | O19: =SUM(O13:O16)/O10 -> 0.3010711981 | P19: 0.3099062521 | Q19: =SUM(Q13:Q16)/Q10 -> 0.3152186633 | R19: 0.3242633467 | S19: =SUM(S13:S16)/S10 -> 0.3297737478 | T19: 0.3359970707
A20: Retained Notes held by Paragon Bank (Class A1, A2, B, C, D and Z Notes) | B20: =SUM(B11*0.05)+B12+B13+B14+B15+B16 -> 251127.5 | C20: 249465.05 | D20: 248278.75 | E20: 247216.1 | F20: 246325.8 | G20: 245810.8 | H20: =SUM(H11*0.05)+H12+H13+H14+H15+H16 -> 245305.75 | I20: 244472.4 | J20: =SUM(J11*0.05)+J12+J13+J14+J15+J16 -> 243870.9 | K20: 243388.1 | L20: 242866.35 | M20: 240722.3 | N20: 237839 | O20: 237158.5 | P20: =SUM(P11*0.05)+P12+P13+P14+P15+P16 -> 236763.15 | Q20: 236536.1 | R20: =SUM(R11*0.05)+R12+R13+R14+R15+R16 -> 236166.6 | S20: 235951.5 | T20: =SUM(T11*0.05)+T12+T13+T14+T15+T16 -> 235717
A21: Lifetime Redemption Rate | B21: 0.2479 | C21: 0.2362 | D21: 0.2173 | E21: 0.2045 | F21: 0.1932 | G21: 0.1776 | H21: 0.166 | I21: 0.1633 | J21: 0.1577 | K21: 0.1516 | L21: 0.1472 | M21: 0.1678 | N21: 0.2004 | O21: 0.1987 | P21: 0.1932 | Q21: 0.1859 | R21: 0.1816 | S21: 0.1757 | T21: 0.1707
A22: Quarterly Redemption Rate | B22: 0.09991884009 | C22: 0.05971444121 | D22: 0.0449622147 | E22: 0.04214439789 | F22: 0.0372 | G22: 0.0224 | H22: 0.0224 | I22: 0.0379 | J22: 0.0284 | K22: 0.0235 | L22: 0.026 | M22: 0.1095 | N22: 0.1654 | O22: 0.0468 | P22: 0.0285 | Q22: 0.0168 | R22: 0.0279 | S22: 0.0167 | T22: 0.0185
A23: PM2010 Lifetime Redemption Rate | B23: 0.1509 | C23: 0.1625 | D23: 0.1779 | E23: 0.165 | F23: 0.1569 | G23: 0.1507 | H23: 0.1501 | I23: 0.1518 | J23: 0.1512 | K23: 0.1432 | L23: 0.149 | M23: 0.1463 | N23: 0.1477 | O23: 0.1488 | P23: 0.1513 | Q23: 0.1462 | R23: 0.146 | S23: 0.1429 | T23: 0.1402
A24: Paragon Bank Lifetime Redemption Rate | B24: 0.2769 | C24: 0.2588 | D24: 0.2295 | E24: 0.2169 | F24: 0.2047 | G24: 0.1861 | H24: 0.171 | I24: 0.1669 | J24: 0.1597 | K24: 0.1541 | L24: 0.1465 | M24: 0.1748 | N24: 0.2189 | O24: 0.2162 | P24: 0.2078 | Q24: 0.1998 | R24: 0.194 | S24: 0.1871 | T24: 0.1812
A25: Further Advances released in the quarter | B25: 0 | C25: 0 | D25: 0 | E25: 0 | F25: 0 | G25: 0 | H25: 0 | I25: 0 | J25: 0 | K25: 0 | L25: 0 | M25: 0 | N25: 0 | O25: 0 | P25: 0 | Q25: 0 | R25: 0 | S25: 0 | T25: 0
A26: Opening PDL Balance | B26: 0 | C26: 0 | D26: 0 | E26: 0 | F26: 0 | G26: 0 | H26: 0 | I26: 0 | J26: 0 | K26: 0 | L26: 0 | M26: 0 | N26: 0 | O26: 0 | P26: 0 | Q26: 0 | R26: 0 | S26: 0 | T26: 0
A27: Quarterly Losses | B27: =+B100+B131+B162 -> 0 | C27: =+C100+C131+C162 -> 0 | D27: =+D100+D131+D162 -> 0 | E27: =+E100+E131+E162+E193 -> 5 | F27: 2 | G27: -4 | H27: 10 | I27: 1 | J27: 0 | K27: =+K100+K131+K162+K193 -> 0 | L27: 2 | M27: =+M100+M131+M162+M193 -> 20 | N27: -19 | O27: =+O100+O131+O162+O193 -> -1 | P27: 0 | Q27: =+Q100+Q131+Q162+Q193 -> 19 | R27: 1 | S27: =+S100+S131+S162+S193 -> -1 | T27: 0
A28: Quarterly Loss Rate (annualised) | B28: =1-(1-B27/B6)^4 -> 0 | C28: 0 | D28: 0 | E28: 4.179644657e-05 | F28: 1.736483364e-05 | G28: 0 | H28: 9.08445488e-05 | I28: =1-(1-I27/I6)^4 -> 9.4421462e-06 | J28: 0 | K28: =1-(1-K27/K6)^4 -> 0 | L28: 2.043363981e-05 | M28: =1-(1-M27/M6)^4 -> 0.0002294523851 | N28: 0 | O28: -1.442225115e-05 | P28: =1-(1-P27/P6)^4 -> 0 | Q28: =1-(1-Q27/Q6)^4 -> 0.0002868664278 | R28: =1-(1-R27/R6)^4 -> 1.553317788e-05 | S28: =1-(1-S27/S6)^4 -> -1.579714294e-05 | T28: =1-(1-T27/T6)^4 -> 0
A29: PDL Replenishment made during the quarter (-ve = recoveries) | B29: 0 | C29: 0 | D29: 0 | E29: 5 | F29: 2 | G29: -4 | H29: 10 | I29: 1 | J29: 0 | K29: 0 | L29: 2 | M29: 20 | N29: -19 | O29: -1 | P29: 0 | Q29: 19 | R29: 1 | S29: -1 | T29: 0
A30: Outstanding PDL at end of the quarter | B30: =B26+B27-B29 -> 0 | C30: 0 | D30: 0 | E30: 0 | F30: 0 | G30: 0 | H30: =H26+H27-H29 -> 0 | I30: 0 | J30: =J26+J27-J29 -> 0 | K30: 0 | L30: =L26+L27-L29 -> 0 | M30: 0 | N30: =N26+N27-N29 -> 0 | O30: 0 | P30: =P26+P27-P29 -> 0 | Q30: 0 | R30: =R26+R27-R29 -> 0 | S30: 0 | T30: =T26+T27-T29 -> 0
A31: Spread Trap repayment in the quarter | B31: N/A | C31: N/A | D31: N/A | E31: N/A | F31: N/A | G31: N/A | H31: N/A | I31: N/A | J31: N/A | K31: N/A | L31: N/A | M31: N/A | N31: N/A | O31: N/A | P31: N/A | Q31: N/A | R31: N/A | S31: N/A | T31: N/A
A32: Spread % (WA Funding Rate less WA Interest Rate) | B32: 0.0193 | C32: 0.0195 | D32: 0.0232 | E32: 0.0246 | F32: 0.0243 | G32: 0.024 | H32: 0.0238 | I32: 0.02373745712 | J32: 0.02352551054 | K32: 0.0226 | L32: 0.01841988261 | M32: 0.01571883222 | N32: 0.0083 | O32: 0 | P32: 0 | Q32: 0 | R32: 0 | S32: 0 | T32: 0
A33: Total Income as a % of the Assets | B33: 0.0125 | C33: 0.0122 | D33: 0.0108 | E33: 0.0099 | F33: 0.012 | G33: 0.0123 | H33: 0.0128 | I33: 0.01340228663 | J33: 0.01326862293 | K33: 0.0133 | L33: 0.01346701663 | M33: 0.0162 | N33: 0.0226 | O33: 0.0336 | P33: 0.03213594228 | Q33: 0.03241094691 | R33: 0.02955776599 | S33: 0.0267 | T33: 0.0246
A34: Quarterly surplus income to the Issuer | B34: 1865 | C34: 2762 | D34: 2106 | E34: 1871 | F34: 2459 | G34: 2087 | H34: 2383 | I34: 2559 | J34: 1348 | K34: 1048 | L34: 605 | M34: 707 | N34: 1515 | O34: 1995 | P34: 1230 | Q34: 1080 | R34: 984 | S34: 842 | T34: 591
A35: Surplus Income as a % of the Assets | B35: =+B34/618532 -> 0.00301520374 | C35: =C34/B9 -> 0.004961081677 | D35: 0.004023045595 | E35: 0.003743814459 | F35: 0.005138921434 | G35: 0.004530070642 | H35: 0.005290864697 | I35: 0.005811978008 | J35: 0.003182014536 | K35: 0.002546155299 | L35: 0.001505179869 | M35: 0.001805827531 | N35: 0.004345603549 | O35: 0.006856542802 | P35: 0.004434786264 | Q35: 0.004008231227 | R35: 0.003714536901 | S35: 0.0032697022 | T35: 0.002334004825
A36: COVID19 Payment holidays as % of mortgages | B36: N/A | C36: N/A | D36: 0.23710528 | E36: 0.0735086669 | F36: 0.0159655654 | G36: 0.02148442929 | H36: 0.003685127877 | I36: 0 | J36: 0 | K36: 0 | L36: 0 | M36: 0 | N36: 0 | O36: 0 | P36: 0 | Q36: 0 | R36: 0 | S36: 0 | T36: 0
A37: Losses as a % of the Assets | B37: =+B27/618532 -> 0 | C37: =C27/B9 -> 0 | D37: 0 | E37: 1.00048489e-05 | F37: 4.179683964e-06 | G37: -8.682454512e-06 | H37: 2.220253755e-05 | I37: 2.271191094e-06 | J37: 0 | K37: 0 | L37: 4.975801219e-06 | M37: 5.108423001e-05 | N37: 0 | O37: 0 | P37: 0 | Q37: 0 | R37: 0 | S37: 0 | T37: 0
A38: Number of Properties in Possession | B38: =+B98+B129+B160 -> 0 | C38: 0 | D38: =+D98+D129+D160 -> 0 | E38: 0 | F38: =+F98+F129+F160 -> 0 | G38: 0 | H38: =+H98+H129+H160 -> 0 | I38: 0 | J38: =+J98+J129+J160 -> 0 | K38: 0 | L38: =+L98+L129+L160 -> 0 | M38: 0 | N38: =+N98+N129+N160 -> 0 | O38: 0 | P38: =+P98+P129+P160 -> 0 | Q38: 0 | R38: =+R98+R129+R160 -> 1 | S38: 1 | T38: =+T98+T129+T160 -> 1
A39: Appointment of a Receiver of Rent | B39: 0 | C39: 0 | D39: =+D99+D130+D161 -> 0 | E39: 0 | F39: =+F99+F130+F161 -> 0 | G39: 0 | H39: =+H99+H130+H161 -> 0 | I39: 0 | J39: =+J99+J130+J161 -> 0 | K39: 0 | L39: =+L99+L130+L161+L192 -> 2 | M39: 2 | N39: 2 | O39: 3 | P39: 2 | Q39: 3 | R39: =+R99+R130+R161+R192 -> 3 | S39: 4 | T39: =+T99+T130+T161+T192 -> 5
A40: Average Number of months (Possessions) in Arrears at the Sale Date | B40: 0 | C40: 0 | D40: 0 | E40: 0 | F40: 0 | G40: 0 | H40: 0 | I40: 0 | J40: 0 | K40: 0 | L40: 0 | M40: 0 | N40: 0 | O40: 0 | P40: 0 | Q40: 0 | R40: 0 | S40: 0 | T40: 0
A41: Average Number of months (RoR) in Arrears at the Sale Date | B41: 0 | C41: 0 | D41: 0 | E41: 0 | F41: 0 | G41: 0 | H41: 0 | I41: 0 | J41: 0 | K41: 0 | L41: 0 | M41: 1.95 | N41: 0 | O41: 0 | P41: 0 | Q41: 0 | R41: 0 | S41: 0 | T41: 0
A42: Arrears excluding Receiver of Rent and Possession Cases
A43: Performing Loans | B43: 0.9994702905 | C43: 0.9987398351 | D43: 0.9988522236 | E43: 0.9989188808 | F43: 0.9961670068 | G43: 0.9951007862 | H43: 0.9941941741 | I43: 0.9951984302 | J43: 0.9955460407 | K43: 0.9942973317 | L43: 0.9947203622 | M43: 0.9957026188 | N43: 0.9929649417 | O43: 0.9956338857 | P43: 0.9943962982 | Q43: 0.9951731372 | R43: 0.9945350702 | S43: 0.9969962332 | T43: 0.9930022675
A44: >1 to 2 months arrears | B44: 0 | C44: 0.0006967905902 | D44: 0.0005899187957 | E44: 0.0004987071345 | F44: 0.002710422425 | G44: 0.0009790286174 | H44: 0.001236722442 | I44: 0.001256693188 | J44: 0.0002676417324 | K44: 0.001415764167 | L44: 0.001333325756 | M44: 0 | N44: 0.001996249835 | O44: 0.001345791138 | P44: 0.001137519806 | Q44: 0.0005583928873 | R44: 0.000600636314 | S44: 0.0003286552416 | T44: 0.002884266855
A45: >2 to 3 months arrears | B45: 0 | C45: 0.0005633742929 | D45: 0 | E45: 0 | F45: 0.0005176511671 | G45: 0.0009004703146 | H45: 0.0005622817997 | I45: 0 | J45: 0.0002434511818 | K45: 0 | L45: 0 | M45: 0 | N45: 0.00152447436 | O45: 0.001540068321 | P45: 0.001855277751 | Q45: 0.0007958609285 | R45: 0.003572976513 | S45: 0.0003183286754 | T45: 0.0003334852197
A46: >3 months arrears | B46: 0.0005297095229 | C46: 0 | D46: 0.0005578575773 | E46: 0.0005824120584 | F46: 0.0006049195968 | G46: 0.003019714911 | H46: 0.004006821677 | I46: 0.003544876652 | J46: 0.003942866336 | K46: 0.00428690413 | L46: 0.003946312051 | M46: 0.004297381161 | N46: 0.003514334081 | O46: 0.001480254882 | P46: 0.00261090424 | Q46: 0.003472608954 | R46: 0.001291317018 | S46: 0.002356782932 | T46: 0.003779980429
A47: Total | B47: =SUM(B43:B46) -> 1 | C47: 1 | D47: 1 | E47: 1 | F47: 1 | G47: 1 | H47: 1 | I47: 1 | J47: 1 | K47: 1 | L47: 1 | M47: 1 | N47: 1 | O47: 1 | P47: 1 | Q47: 1 | R47: 1 | S47: =SUM(S43:S46) -> 1 | T47: =SUM(T43:T46) -> 1
A48: Total Value of Arrears (£000's) | B48: 9.35630031 | C48: 9.199248998 | D48: 9.222490203 | E48: 13.15744763 | F48: 27.33518898 | G48: 44.69773077 | H48: 47.36618087 | I48: 58.54846958 | J48: 64.06438072 | K48: 76.13962934 | L48: 78.04434954 | M48: 77.04981974 | N48: 80.9286283 | O48: 55.65055271 | P48: 68.52773933 | Q48: 72.63776034 | R48: 94.41126022 | S48: 108.3871007 | T48: 165.1403073
A49: Total Value of Arrears as a % of the Notes (£618,532,000) | B49: =+B48/618532 -> 1.512662289e-05 | C49: 1.487271313e-05 | D49: 1.491028791e-05 | E49: 2.127205646e-05 | F49: 4.419365366e-05 | G49: 7.226421717e-05 | H49: =+H48/618532 -> 7.657838377e-05 | I49: 9.465713913e-05 | J49: =+J48/618532 -> 0.0001035748849 | K49: 0.0001230973165 | L49: =+L48/618532 -> 0.0001261767371 | M49: 0.0001245688497 | N49: =+N48/618532 -> 0.0001308398406 | O49: 8.997198642e-05 | P49: =+P48/618532 -> 0.0001107909362 | Q49: 0.0001174357355 | R49: =+R48/618532 -> 0.0001526376327 | S49: 0.0001752328104 | T49: =+T48/618532 -> 0.0002669874919
A51: Underlying Assets | B51: =+B5 -> 2019-10-31 | C51: 2020-01-31 | D51: 2020-04-30 | E51: 2020-07-31 | F51: 2020-10-30 | G51: 2021-01-29 | H51: =+H5 -> 2021-04-30 | I51: 2021-07-30 | J51: =+J5 -> 2021-10-29 | K51: 2022-01-31 | L51: =+L5 -> 2022-04-29 | M51: 2022-07-29 | N51: =+N5 -> 2022-10-31 | O51: 2023-01-31 | P51: =+P5 -> 2023-04-28 | Q51: 2023-07-31 | R51: =+R5 -> 2023-10-31 | S51: 2024-01-31 | T51: =+T5 -> 2024-04-30
A52: Weighted Average LTV | B52: 0.7092759061 | C52: 0.7100081647 | D52: 0.7112737152 | E52: 0.7127468436 | F52: 0.7129320426 | G52: 0.7131120267 | H52: 0.7133548597 | I52: 0.7130414638 | J52: 0.7136454221 | K52: 0.7133648555 | L52: 0.7121770291 | M52: 0.7101383002 | N52: 0.7113400636 | O52: 0.7114944814 | P52: 0.7122177704 | Q52: 0.7118668335 | R52: 0.7142122733 | S52: 0.7146892629 | T52: 0.7143940801
A53: Weighted Average Nationwide Indexed LTV | B53: 0.6694785521 | C53: 0.6757403394 | D53: 0.6687675312 | E53: 0.660132743 | F53: 0.6448619743 | G53: 0.6330696062 | H53: 0.6308818406 | I53: 0.6010243465 | J53: 0.5951700156 | K53: 0.5806182811 | L53: 0.5664324549 | M53: 0.5427052143 | N53: 0.5366278396 | O53: 0.5503327096 | P53: 0.5693510399 | Q53: 0.5617738815 | R53: 0.5664126594 | S53: 0.5721176064 | T53: 0.5697044665
A54: % of Fixed Rate Mortgages (reverting to Term SONIA plus a variable margin) - reverting to Libor linked prior to 1st July 2021 | B54: 0.03947532763 | C54: 0.02785340326 | D54: 0.008052578504 | E54: 0.008091558576 | F54: 0.007736277707 | G54: 0.007778834316 | H54: 0.007948713567 | I54: 0.008252574007 | J54: 0.008210507474 | K54: 0.008398248964 | L54: 0.002284455346 | M54: 0 | N54: 0 | O54: 0 | P54: 0 | Q54: 0 | R54: 0 | S54: 0 | T54: 0
A55: % of Fixed Rate Mortgages (reverting to SVR) | B55: 0.7982983797 | C55: 0.8139483757 | D55: 0.8484957338 | E55: 0.8300777663 | F55: 0.8367549053 | G55: 0.8495284869 | H55: 0.8593689691 | I55: 0.8587521927 | J55: 0.8638955736 | K55: 0.8673547178 | L55: 0.8866380164 | M55: 0.8105318236 | N55: 0.8145049187 | O55: 0.8316820224 | P55: 0.8157204236 | Q55: 0.8149813415 | R55: 0.8201142748 | S55: 0.813999373 | T55: 0.8194868699
A56: % of Term SONIA Linked Mortgages (reverting to Term SONIA plus a variable margin) - Libor linked prior to 1st July 2021 | B56: 0 | C56: 0 | D56: 0 | E56: 0 | F56: 0 | G56: 0 | H56: 0 | I56: 0 | J56: 0 | K56: 0 | L56: 0 | M56: 0 | N56: 0 | O56: 0 | P56: 0 | Q56: 0 | R56: 0 | S56: 0 | T56: 0
A57: % of Term SONIA Linked Mortgages plus a Variable Margin - Libor linked prior to 1st July 2021 | B57: 0.06125318651 | C57: 0.05887985151 | D57: 0.05628256497 | E57: 0.05460906842 | F57: 0.05121005646 | G57: 0.04488599475 | H57: 0.04238877116 | I57: 0.04053221226 | J57: 0.03869961669 | K57: 0.0379904099 | L57: 0.03319500526 | M57: 0.0337469432 | N57: 0.03356419427 | O57: 0.02990644883 | P57: 0.02427930506 | Q57: 0.02228780552 | R57: 0.02134191014 | S57: 0.02093018684 | T57: 0.02021498066
A58: % of Non Reversionary Term SONIA Linked Mortgages - Libor linked prior to 1st July 2021 | B58: 0.010591974 | C58: 0.01029186867 | D58: 0.009860155596 | E58: 0.009237875897 | F58: 0.008908521878 | G58: 0.009080318251 | H58: 0.009247005388 | I58: 0.007843801371 | J58: 0.007322226732 | K58: 0.007463495807 | L58: 0.00707426041 | M58: 0.005945971967 | N58: 0.007060674866 | O58: 0.005985119236 | P58: 0.005840252322 | Q58: 0.005685235117 | R58: 0.005470726052 | S58: 0.003790781245 | T58: 0.002279229901
A59: % of SVR Mortgages | B59: 0.09038113218 | C59: 0.0890265008 | D59: 0.07730896713 | E59: 0.09798373083 | F59: 0.0953902387 | G59: 0.08872636579 | H59: 0.08104654077 | I59: 0.08461921964 | J59: 0.08187207553 | K59: 0.07879312751 | L59: 0.07080826261 | M59: 0.1497752612 | N59: 0.1448702122 | O59: 0.1324264096 | P59: 0.154160019 | Q59: 0.1570456179 | R59: 0.153073089 | S59: 0.1612796589 | T59: 0.1580189196
A60: Weighted Average Loan Size | B60: 171236.2038 | C60: 174425.3453 | D60: 175285.4991 | E60: 176634.211 | F60: 177259.799 | G60: 178022.9123 | H60: 178547.2853 | I60: 178746.9681 | J60: 179112.2601 | K60: 180567.0788 | L60: 181927.6286 | M60: 179150.1609 | N60: 172986.303 | O60: 171522.3949 | P60: 172388.0571 | Q60: 172800.4971 | R60: 173759.6537 | S60: 174388.3224 | T60: 175631.8623
A61: Weighted Average Interest Rate | B61: 0.03927758232 | C61: 0.03976399399 | D61: 0.03952910506 | E61: 0.03871487049 | F61: 0.0384912491 | G61: 0.03826749981 | H61: 0.03810645287 | I61: 0.03811216203 | J61: 0.03803290765 | K61: 0.03820722453 | L61: 0.03862474039 | M61: 0.04109992728 | N61: 0.04299541981 | O61: 0.0433288603 | P61: 0.04420209245 | Q61: 0.04549922898 | R61: 0.04597129957 | S61: 0.04667676061 | T61: 0.04742547391
A62: Weighted Average Maturity Date (years) | B62: 18.03633331 | C62: 17.79844365 | D62: 17.61611542 | E62: 17.41084605 | F62: 17.20770331 | G62: 16.99163709 | H62: 16.83037032 | I62: 16.63563706 | J62: 16.38312849 | K62: 16.13391625 | L62: 15.94890006 | M62: 15.60248276 | N62: 15.2173045 | O62: 14.93502303 | P62: 14.68432494 | Q62: 14.45525883 | R62: 14.21918161 | S62: 13.98162435 | T62: 13.76437918
A63: Weighted Average Seasoning (months) | B63: 39.07333437 | C63: 42.4348836 | D63: 45.33614 | E63: 48.05060923 | F63: 50.78939928 | G63: 53.58587918 | H63: 56.23368382 | I63: 59.04330843 | J63: 61.9984042 | K63: 65.04318125 | L63: 67.77207461 | M63: 71.40470162 | N63: 75.64216257 | O63: 78.85213926 | P63: 81.59576158 | Q63: 84.52141336 | R63: 87.67124293 | S63: 90.69845429 | T63: 93.67470313
A64: % of Interest Only Mortgages (optional switching to repayment) | B64: 0.9230148951 | C64: 0.9250750689 | D64: 0.9248863225 | E64: 0.9280666158 | F64: 0.9284394697 | G64: 0.9322035442 | H64: 0.9336987787 | I64: 0.9348600626 | J64: 0.9341968617 | K64: 0.9360980042 | L64: 0.9354908785 | M64: 0.9342912422 | N64: 0.9291014801 | O64: 0.933663221 | P64: 0.9361088655 | Q64: 0.9378552317 | R64: 0.940446164 | S64: 0.9410916976 | T64: 0.9425912334
A65: % of Repayment Mortgages | B65: 0.07698510493 | C65: 0.07492493115 | D65: 0.07511367748 | E65: 0.07193338419 | F65: 0.07156053031 | G65: 0.06779645579 | H65: 0.06630122126 | I65: 0.06513993742 | J65: 0.06580313832 | K65: 0.06390199584 | L65: 0.06450912146 | M65: 0.06570875777 | N65: 0.07089851988 | O65: 0.06633677903 | P65: 0.06389113455 | Q65: 0.06214476826 | R65: 0.059553836 | S65: 0.05890830237 | T65: 0.05740876661
A66: % of Mortgages in London | B66: 0.2080561564 | C66: 0.2136798866 | D66: 0.2177150776 | E66: 0.2213725027 | F66: 0.2242163742 | G66: 0.2243490503 | H66: 0.2261311664 | I66: 0.2287402816 | J66: 0.2325029625 | K66: 0.2336789992 | L66: 0.2363196081 | M66: 0.2434016511 | N66: 0.2346898166 | O66: 0.2389836443 | P66: 0.241970965 | Q66: 0.2414982439 | R66: 0.2439812306 | S66: 0.2443026593 | T66: 0.2458251843
A67: % of Mortgages in the South East | B67: 0.4252332308 | C67: 0.4253013638 | D67: 0.4232593976 | E67: 0.4235655322 | F67: 0.4222912144 | G67: 0.4248779444 | H67: 0.4240807786 | I67: 0.4268218532 | J67: 0.4259814321 | K67: 0.430768712 | L67: 0.43407131 | M67: 0.4085304023 | N67: 0.3801332308 | O67: 0.3750116675 | P67: 0.3750424371 | Q67: 0.3776698498 | R67: 0.3780595067 | S67: 0.3804904122 | T67: 0.3824024342
A68: % of Owner Occupied Mortgages | B68: 0 | C68: 0 | D68: 0 | E68: 0 | F68: 0 | G68: 0 | H68: 0 | I68: 0 | J68: 0 | K68: 0 | L68: 0 | M68: 0 | N68: 0 | O68: 0 | P68: 0 | Q68: 0 | R68: 0 | S68: 0 | T68: 0
A69: % of Investment Home Loans - Professional Landlords | B69: 0.5863439471 | C69: 0.593915265 | D69: 0.6021064717 | E69: 0.6077839549 | F69: 0.611859279 | G69: 0.6132084521 | H69: 0.6148502246 | I69: 0.6198776354 | J69: 0.6230281196 | K69: 0.6244557539 | L69: 0.6295162297 | M69: 0.6489809644 | N69: 0.6603967458 | O69: 0.6650488395 | P69: 0.665091088 | Q69: 0.6652410181 | R69: 0.6653585062 | S69: 0.6666849249 | T69: 0.6709781702
A70: % of Investment Home Loans - Emerging Professional Landlords | B70: 0.4136560529 | C70: 0.406084735 | D70: 0.3978935283 | E70: 0.3922160451 | F70: 0.388140721 | G70: 0.3867915479 | H70: 0.3851497754 | I70: 0.3801223646 | J70: 0.3769718804 | K70: 0.3755442461 | L70: 0.3704837703 | M70: 0.3510190356 | N70: 0.3396032542 | O70: 0.3349511605 | P70: 0.334908912 | Q70: 0.3347589819 | R70: 0.3346414938 | S70: 0.3333150751 | T70: 0.3290218298
A71: Weighted Average Interest Coverage Ratio (calculated at the origination date) | B71: 1.577236841 | C71: 1.583665554 | D71: 1.588184376 | E71: 1.594788955 | F71: 1.5997941 | G71: 1.6016793 | H71: 1.60449318 | I71: 1.606913189 | J71: 1.609321671 | K71: 1.610512883 | L71: 1.610797683 | M71: 1.62067664 | N71: 1.632070733 | O71: 1.630402093 | P71: 1.631815124 | Q71: 1.63011581 | R71: 1.63179148 | S71: 1.634243197 | T71: 1.635281661
A72: % of PM2010 Originated Assets (Professional) | B72: 0.1655569882 | C72: 0.1679604221 | D72: 0.168899088 | E72: 0.1705229672 | F72: 0.1709341144 | G72: 0.1705164011 | H72: 0.1680284095 | I72: 0.1671008759 | J72: 0.1640354226 | K72: 0.1648506231 | L72: 0.1632657315 | M72: 0.1786909238 | N72: 0.2040187204 | O72: 0.2070663184 | P72: 0.2008653089 | Q72: 0.200422698 | R72: 0.1990390545 | S72: 0.1996553323 | T72: 0.2005063477
A73: % of PM2010 Originated Assets (Emerging Professional) | B73: 0.08581607931 | C73: 0.08649973053 | D73: 0.08190904621 | E73: 0.08320488909 | F73: 0.08431837767 | G73: 0.0826305692 | H73: 0.08094093742 | I73: 0.08027636001 | J73: 0.08070068211 | K73: 0.08168978138 | L73: 0.07555585043 | M73: 0.08153406526 | N73: 0.09396756727 | O73: 0.09199199722 | P73: 0.09146861529 | Q73: 0.0920955532 | R73: 0.09053504397 | S73: 0.08819841126 | T73: 0.08595235169
A74: % of Paragon Bank Originated Assets (Professional) | B74: 0.4207869588 | C74: 0.4259548429 | D74: 0.4332073837 | E74: 0.4372609876 | F74: 0.4409251645 | G74: 0.442692051 | H74: 0.4468218151 | I74: 0.4527767595 | J74: 0.458992697 | K74: 0.4596051308 | L74: 0.4662504982 | M74: 0.4702900406 | N74: 0.4563780254 | O74: 0.4579825211 | P74: 0.4642257791 | Q74: 0.4648183202 | R74: 0.4663194517 | S74: 0.4670295926 | T74: 0.4704718225
A75: % of Paragon Bank Originated Assets (Emerging Professional) | B75: 0.3278399736 | C75: 0.3195850045 | D75: 0.3159844821 | E75: 0.309011156 | F75: 0.3038223433 | G75: 0.3041609787 | H75: 0.304208838 | I75: 0.2998460046 | J75: 0.2962711983 | K75: 0.2938544647 | L75: 0.2949279199 | M75: 0.2694849703 | N75: 0.245635687 | O75: 0.2429591633 | P75: 0.2434402967 | Q75: 0.2426634287 | R75: 0.2441064498 | S75: 0.2451166638 | T75: 0.2430694781
A77: Underlying Assets - Paragon Mortgages 2010 Originated Assets (Professional) | B77: =+B5 -> 2019-10-31 | C77: 2020-01-31 | D77: 2020-04-30 | E77: 2020-07-31 | F77: 2020-10-30 | G77: 2021-01-29 | H77: =+H5 -> 2021-04-30 | I77: 2021-07-30 | J77: =+J5 -> 2021-10-29 | K77: 2022-01-31 | L77: =+L5 -> 2022-04-29 | M77: 2022-07-29 | N77: =+N5 -> 2022-10-31 | O77: 2023-01-31 | P77: =+P5 -> 2023-04-28 | Q77: 2023-07-31 | R77: =+R5 -> 2023-10-31 | S77: 2024-01-31 | T77: =+T5 -> 2024-04-30
A78: Weighted Average LTV | B78: 0.6993820503 | C78: 0.6987493717 | D78: 0.6999920471 | E78: 0.7020172429 | F78: 0.7016398378 | G78: 0.7019642758 | H78: 0.7033244178 | I78: 0.7028429097 | J78: 0.7063734062 | K78: 0.7067465485 | L78: 0.705602305 | M78: 0.7044790085 | N78: 0.7055665196 | O78: 0.7066723784 | P78: 0.7104217459 | Q78: 0.7101381454 | R78: 0.7121631866 | S78: 0.712165224 | T78: 0.7127015048
A79: Weighted Average Nationwide Indexed LTV | B79: 0.6083554855 | C79: 0.6114285246 | D79: 0.6056620057 | E79: 0.6001796099 | F79: 0.5854326052 | G79: 0.5739191381 | H79: 0.571507482 | I79: 0.5459094104 | J79: 0.5396694162 | K79: 0.5263669076 | L79: 0.5119589863 | M79: 0.4914841666 | N79: 0.4883877456 | O79: 0.5027664573 | P79: 0.5204629983 | Q79: 0.514302952 | R79: 0.5177631118 | S79: 0.5225096227 | T79: 0.5208918027
A80: % of Fixed Rate Mortgages (reverting to Term SONIA plus a variable margin) - reverting to Libor linked prior to 1st July 2021 | B80: 0.06491099314 | C80: 0.05445572056 | D80: 0.02122686051 | E80: 0.02015073593 | F80: 0.01702419647 | G80: 0.01745618438 | H80: 0.01812102923 | I80: 0.0189385247 | J80: 0.01985632721 | K80: 0.02023287395 | L80: 0.006518973247 | M80: 0 | N80: 0 | O80: 0 | P80: 0 | Q80: 0 | R80: 0 | S80: 0 | T80: 0
A81: % of Fixed Rate Mortgages (reverting to SVR) | B81: 0.5305434908 | C81: 0.5547123541 | D81: 0.6056680673 | E81: 0.6127215494 | F81: 0.6201717594 | G81: 0.6392213343 | H81: 0.6485670268 | I81: 0.6544525565 | J81: 0.6765004954 | K81: 0.683973733 | L81: 0.7106458927 | M81: 0.7506006411 | N81: 0.7724133152 | O81: 0.7362628991 | P81: 0.6321806291 | Q81: 0.6182438003 | R81: 0.6148959079 | S81: 0.6149077872 | T81: 0.6605588815
A82: % of Term SONIA Linked Mortgages (reverting to Term SONIA plus a variable margin) - Libor linked prior to 1st July 2021 | B82: 0 | C82: 0 | D82: 0 | E82: 0 | F82: 0 | G82: 0 | H82: 0 | I82: 0 | J82: 0 | K82: 0 | L82: 0 | M82: 0 | N82: 0 | O82: 0 | P82: 0 | Q82: 0 | R82: 0 | S82: 0 | T82: 0
A83: % of Term SONIA Linked Mortgages plus a Variable Margin - Libor linked prior to 1st July 2021 | B83: 0.2156851975 | C83: 0.2088109568 | D83: 0.1991998811 | E83: 0.1830833856 | F83: 0.1715564244 | G83: 0.1540787975 | H83: 0.1472357323 | I83: 0.1411103682 | J83: 0.1350372656 | K83: 0.1326034079 | L83: 0.116917283 | M83: 0.1088037702 | N83: 0.09832685637 | O83: 0.09561763651 | P83: 0.07547589111 | Q83: 0.06980023374 | R83: 0.06851013995 | S83: 0.06565752151 | T83: 0.06518670616
A84: % of Non Reversionary Term SONIA Linked Mortgages - Libor linked prior to 1st July 2021 | B84: 0.04266345627 | C84: 0.03901377453 | D84: 0.03638864093 | E84: 0.03151300555 | F84: 0.02872055351 | G84: 0.02934900037 | H84: 0.03031013047 | I84: 0.02629124907 | J84: 0.02308981417 | K84: 0.02342178901 | L84: 0.02427942659 | M84: 0.01872851805 | N84: 0.01965432887 | O84: 0.01395561529 | P84: 0.01480874357 | Q84: 0.01394730452 | R84: 0.01444737294 | S84: 0.01464736149 | T84: 0.007025560509
A85: % of SVR Mortgages | B85: 0.1461968623 | C85: 0.143007194 | D85: 0.1375165501 | E85: 0.1525313235 | F85: 0.1625270662 | G85: 0.1598946835 | H85: 0.1557660812 | I85: 0.1592073015 | J85: 0.1455160976 | K85: 0.1397681961 | L85: 0.1416384244 | M85: 0.1218670707 | N85: 0.1096054996 | O85: 0.154163849 | P85: 0.2775347362 | Q85: 0.2980086614 | R85: 0.3021465792 | S85: 0.3047873298 | T85: 0.2672288518
A86: Weighted Average Loan Size | B86: 154801.7458 | C86: 153066.842 | D86: 151211.1983 | E86: 151947.1026 | F86: 152025.1773 | G86: 152381.4298 | H86: 152227.3793 | I86: 151582.4338 | J86: 149373.8398 | K86: 149910.5011 | L86: 150399.7221 | M86: 149391.7029 | N86: 149150.4802 | O86: 148782.8965 | P86: 147873.3816 | Q86: 149556.6379 | R86: 148564.9465 | S86: 148691.4556 | T86: 148302.542
A87: Weighted Average Interest Rate | B87: 0.04643052522 | C87: 0.04580567872 | D87: 0.04514946617 | E87: 0.04286068721 | F87: 0.04237116583 | G87: 0.04178129327 | H87: 0.04156487868 | I87: 0.04135858992 | J87: 0.04116834632 | K87: 0.04160707737 | L87: 0.04311714385 | M87: 0.0438793019 | N87: 0.04638444309 | O87: 0.04942442025 | P87: 0.05269099443 | Q87: 0.05564567823 | R87: 0.05659964545 | S87: 0.05669660192 | T87: 0.05692759341
A88: Weighted Average Maturity Date (years) | B88: 15.14474307 | C88: 14.99459092 | D88: 14.8262327 | E88: 14.63389272 | F88: 14.50186894 | G88: 14.35952849 | H88: 14.33470605 | I88: 14.17096752 | J88: 13.90625338 | K88: 13.73228006 | L88: 13.50162645 | M88: 13.32704482 | N88: 13.15198819 | O88: 12.9155391 | P88: 12.6059101 | Q88: 12.39041773 | R88: 12.08719028 | S88: 11.79194399 | T88: 11.61119347
A89: Weighted Average Seasoning (months) | B89: 62.25320965 | C89: 65.01662321 | D89: 67.59967706 | E89: 70.43028826 | F89: 73.16878235 | G89: 75.7346817 | H89: 78.21094541 | I89: 80.82032823 | J89: 83.838156 | K89: 86.53746016 | L89: 90.0383999 | M89: 93.06175268 | N89: 95.55092541 | O89: 98.85782066 | P89: 101.4386382 | Q89: 104.3895891 | R89: 108.273529 | S89: 111.4649068 | T89: 114.3631626
A90: % of Interest Only Mortgages (optional switching to repayment) | B90: 0.9158772053 | C90: 0.911852474 | D90: 0.9094345584 | E90: 0.9099215621 | F90: 0.9105656477 | G90: 0.914766004 | H90: 0.91633326 | I90: 0.9155372603 | J90: 0.9128919474 | K90: 0.9161501141 | L90: 0.9146177554 | M90: 0.9192768737 | N90: 0.91581197 | O90: 0.923586268 | P90: 0.9298079199 | Q90: 0.9344638236 | R90: 0.9336364705 | S90: 0.93448147 | T90: 0.937724949
A91: % of Repayment Mortgages | B91: 0.08412279469 | C91: 0.08814752599 | D91: 0.09056544156 | E91: 0.09007843794 | F91: 0.08943435228 | G91: 0.085233996 | H91: 0.08366673997 | I91: 0.08446273969 | J91: 0.08710805256 | K91: 0.08384988595 | L91: 0.08538224459 | M91: 0.08072312631 | N91: 0.08418803002 | O91: 0.07641373198 | P91: 0.07019208011 | Q91: 0.06553617637 | R91: 0.06636352946 | S91: 0.06551852998 | T91: 0.06227505099
A92: % of Mortgages in London | B92: 0.1256218167 | C92: 0.1247680935 | D92: 0.119868205 | E92: 0.1217122526 | F92: 0.125953647 | G92: 0.1289304564 | H92: 0.1255958596 | I92: 0.1310183064 | J92: 0.1319855107 | K92: 0.1290507173 | L92: 0.127884665 | M92: 0.1255957647 | N92: 0.1255659006 | O92: 0.1300278853 | P92: 0.1225310965 | Q92: 0.1250952165 | R92: 0.1282772896 | S92: 0.1297696823 | T92: 0.1271655805
A93: % of Mortgages in the South East | B93: 0.3000415998 | C93: 0.2937050419 | D93: 0.2968744851 | E93: 0.2993418637 | F93: 0.3033767928 | G93: 0.3063860938 | H93: 0.2996364669 | I93: 0.2995958773 | J93: 0.2922339812 | K93: 0.2974663355 | L93: 0.2941992054 | M93: 0.2910971878 | N93: 0.2905977948 | O93: 0.2864854069 | P93: 0.2847946869 | Q93: 0.2898251958 | R93: 0.2945248941 | S93: 0.2986475334 | T93: 0.3016067017
A94: % of Owner Occupied Mortgages | B94: 0 | C94: 0 | D94: 0 | E94: 0 | F94: 0 | G94: 0 | H94: 0 | I94: 0 | J94: 0 | K94: 0 | L94: 0 | M94: 0 | N94: 0 | O94: 0 | P94: 0 | Q94: 0 | R94: 0 | S94: 0 | T94: 0
A95: % of Investment Home Loans - Professional Landlords | B95: 1 | C95: 1 | D95: 1 | E95: 1 | F95: 1 | G95: 1 | H95: 1 | I95: 1 | J95: 1 | K95: 1 | L95: 1 | M95: 1 | N95: 1 | O95: 1 | P95: 1 | Q95: 1 | R95: 1 | S95: 1 | T95: 1
A96: % of Investment Home Loans - Emerging Professional Landlords | B96: 0 | C96: 0 | D96: 0 | E96: 0 | F96: 0 | G96: 0 | H96: 0 | I96: 0 | J96: 0 | K96: 0 | L96: 0 | M96: 0 | N96: 0 | O96: 0 | P96: 0 | Q96: 0 | R96: 0 | S96: 0 | T96: 0
A97: Weighted Average Interest Coverage Ratio (calculated at the origination date) | B97: 1.682474794 | C97: 1.685874374 | D97: 1.692121804 | E97: 1.690668743 | F97: 1.692229598 | G97: 1.690288136 | H97: 1.697002068 | I97: 1.687475052 | J97: 1.696873921 | K97: 1.695290066 | L97: 1.707978778 | M97: 1.719474356 | N97: 1.71097458 | O97: 1.711705165 | P97: 1.709227152 | Q97: 1.7058808 | R97: 1.706723552 | S97: 1.706165544 | T97: 1.703021062
A98: Number of Properties in Possession | B98: 0 | C98: 0 | D98: 0 | E98: 0 | F98: 0 | G98: 0 | H98: 0 | I98: 0 | J98: 0 | K98: 0 | L98: 0 | M98: 0 | N98: 0 | O98: 0 | P98: 0 | Q98: 0 | R98: 0 | S98: 0 | T98: 0
A99: Appointment of a Receiver of Rent | B99: 0 | C99: 0 | D99: 0 | E99: 0 | F99: 0 | G99: 0 | H99: 0 | I99: 0 | J99: 0 | K99: 0 | L99: 2 | M99: 1 | N99: 1 | O99: 1 | P99: 0 | Q99: 0 | R99: 1 | S99: 1 | T99: 2
A100: PML Quarterly Losses | B100: 0 | C100: 0 | D100: 0 | E100: 1 | F100: 0 | G100: 0 | H100: -1 | I100: 0 | J100: 0 | K100: 0 | L100: 2 | M100: 0 | N100: 0 | O100: 0 | P100: 0 | Q100: 0 | R100: 1 | S100: -1 | T100: 0
A101: Arrears excluding Receiver of Rent and Possession Cases
A102: Performing Loans | B102: 1 | C102: 0.9990233719 | D102: 1 | E102: 0.9989640936 | F102: 0.9989285715 | G102: 0.9989041141 | H102: 0.9988819677 | I102: 0.9988315298 | J102: 0.9987749032 | K102: 0.9973886733 | L102: 1 | M102: 0.9985483432 | N102: 1 | O102: 0.9986010232 | P102: 0.9967493987 | Q102: 0.9966863949 | R102: 0.9986784441 | S102: 0.9954286372 | T102: 0.9967243768
A103: >1 to 2 months arrears | B103: 0 | C103: 0.0009766280592 | D103: 0 | E103: 0.001035906423 | F103: 0 | G103: 0 | H103: 0 | I103: 0 | J103: 0 | K103: 0.00136299771 | L103: 0 | M103: 0 | N103: 0 | O103: 0.001398976832 | P103: 0.001768238523 | Q103: 0 | R103: 0 | S103: 0.001641528207 | T103: 0
A104: >2 to 3 months arrears | B104: 0 | C104: 0 | D104: 0 | E104: 0 | F104: 0.001071428528 | G104: 0 | H104: 0 | I104: 0 | J104: 0 | K104: 0 | L104: 0 | M104: 0 | N104: 0 | O104: 0 | P104: 0.001482362763 | Q104: 0 | R104: 0.001321555876 | S104: 0.001589950299 | T104: 0.001660285271
A105: >3 months arrears | B105: 0 | C105: 0 | D105: 0 | E105: 0 | F105: 0 | G105: 0.00109588589 | H105: 0.001118032277 | I105: 0.001168470158 | J105: 0.001225096789 | K105: 0.00124832899 | L105: 0 | M105: 0.001451656765 | N105: 0 | O105: 0 | P105: 0 | Q105: 0.003313605072 | R105: 0 | S105: 0.00133988428 | T105: 0.001615337933
A106: Total | B106: =SUM(B102:B105) -> 1 | C106: 1 | D106: 1 | E106: 1 | F106: 1 | G106: 1 | H106: 1 | I106: 1 | J106: 1 | K106: 1 | L106: 1 | M106: 1 | N106: 1 | O106: 1 | P106: 1 | Q106: 1 | R106: 1 | S106: 1 | T106: 1
A108: Underlying Assets - Paragon Mortgages 2010 Originated Assets (Emerging Professional) | B108: =+B77 -> 2019-10-31 | C108: 2020-01-31 | D108: =+D77 -> 2020-04-30 | E108: 2020-07-31 | F108: =+F77 -> 2020-10-30 | G108: 2021-01-29 | H108: =+H77 -> 2021-04-30 | I108: 2021-07-30 | J108: =+J77 -> 2021-10-29 | K108: 2022-01-31 | L108: =+L77 -> 2022-04-29 | M108: 2022-07-29 | N108: =+N77 -> 2022-10-31 | O108: 2023-01-31 | P108: =+P77 -> 2023-04-28 | Q108: 2023-07-31 | R108: =+R77 -> 2023-10-31 | S108: 2024-01-31 | T108: =+T77 -> 2024-04-30
A109: Weighted Average LTV | B109: 0.6963739471 | C109: 0.6967837467 | D109: 0.6940663418 | E109: 0.6945811796 | F109: 0.6933364126 | G109: 0.6907524552 | H109: 0.6907136214 | I109: 0.6905005592 | J109: 0.6894410238 | K109: 0.6854939979 | L109: 0.685727243 | M109: 0.6846033019 | N109: 0.6840835308 | O109: 0.6817809593 | P109: 0.6829384415 | Q109: 0.6821848327 | R109: 0.6817547781 | S109: 0.6842972794 | T109: 0.6752057791
A110: Weighted Average Nationwide Indexed LTV | B110: 0.6160020286 | C110: 0.6228999583 | D110: 0.6113355598 | E110: 0.6023317718 | F110: 0.5865794974 | G110: 0.5719577304 | H110: 0.5674126013 | I110: 0.5400301911 | J110: 0.5329393347 | K110: 0.5197008182 | L110: 0.5067564264 | M110: 0.4878972238 | N110: 0.4843575364 | O110: 0.4938848311 | P110: 0.5089218746 | Q110: 0.5039991125 | R110: 0.5046415734 | S110: 0.5093566658 | T110: 0.5029246648
A111: % of Fixed Rate Mortgages (reverting to Term SONIA plus a variable margin) - reverting to Libor linked prior to 1st July 2021 | B111: 0.1049960189 | C111: 0.1176754257 | D111: 0.0545407538 | E111: 0.0559509825 | F111: 0.05723855099 | G111: 0.0581173363 | H111: 0.06058573082 | I111: 0.06338017743 | J111: 0.06137948676 | K111: 0.06197650429 | L111: 0.01614872182 | M111: 0 | N111: 0 | O111: 0 | P111: 0 | Q111: 0 | R111: 0 | S111: 0 | T111: 0
A112: % of Fixed Rate Mortgages (reverting to SVR) | B112: 0.4490997326 | C112: 0.4711799287 | D112: 0.5269889432 | E112: 0.5074411441 | F112: 0.5117547029 | G112: 0.544274483 | H112: 0.5689780985 | I112: 0.5852790694 | J112: 0.5953624356 | K112: 0.6050834112 | L112: 0.6730570308 | M112: 0.6892594917 | N112: 0.7098356292 | O112: 0.6940870094 | P112: 0.6749225624 | Q112: 0.6797970448 | R112: 0.6760319592 | S112: 0.6769793585 | T112: 0.6397363138
A113: % of Term SONIA Linked Mortgages (reverting to Term SONIA plus a variable margin) - Libor linked prior to 1st July 2021 | B113: 0 | C113: 0 | D113: 0 | E113: 0 | F113: 0 | G113: 0 | H113: 0 | I113: 0 | J113: 0 | K113: 0 | L113: 0 | M113: 0 | N113: 0 | O113: 0 | P113: 0 | Q113: 0 | R113: 0 | S113: 0 | T113: 0
A114: % of Term SONIA Linked Mortgages plus a Variable Margin - Libor linked prior to 1st July 2021 | B114: 0.2976714272 | C114: 0.2752364075 | D114: 0.2763783462 | E114: 0.2811030279 | F114: 0.25955446 | G114: 0.2252560146 | H114: 0.2180477 | I114: 0.2111773147 | J114: 0.2050629725 | K114: 0.197462341 | L114: 0.1867018829 | M114: 0.1754444224 | N114: 0.1437056982 | O114: 0.109871045 | P114: 0.09969339595 | Q114: 0.09010483212 | R114: 0.08511308244 | S114: 0.08867861063 | T114: 0.08312317403
A115: % of Non Reversionary Term SONIA Linked Mortgages - Libor linked prior to 1st July 2021 | B115: 0.04111980758 | C115: 0.04322670851 | D115: 0.04534477572 | E115: 0.0464417984 | F115: 0.0474297491 | G115: 0.04932596217 | H115: 0.05132189601 | I115: 0.04298289837 | J115: 0.04379986904 | K115: 0.04409853023 | L115: 0.0411650726 | M115: 0.03188061046 | N115: 0.03246677475 | O115: 0.03364837648 | P115: 0.03132975678 | Q115: 0.03137913412 | R115: 0.02866442084 | S115: 0.009822823421 | T115: 0.01012840727
A116: % of SVR Mortgages | B116: 0.1071130136 | C116: 0.09268152957 | D116: 0.09674718112 | E116: 0.1090630471 | F116: 0.124022537 | G116: 0.1230262039 | H116: 0.1010665747 | I116: 0.09718054008 | J116: 0.09439523607 | K116: 0.09137921323 | L116: 0.08292729187 | M116: 0.1034154754 | N116: 0.1139918979 | O116: 0.1623935692 | P116: 0.1940542849 | Q116: 0.198718989 | R116: 0.2101905376 | S116: 0.2245192075 | T116: 0.2670121049
A117: Weighted Average Loan Size | B117: 147356.3859 | C117: 149828.3058 | D117: 148795.5779 | E117: 147458.1937 | F117: 146586.137 | G117: 146522.2066 | H117: 146057.7907 | I117: 146584.0501 | J117: 148287.4939 | K117: 149929.5892 | L117: 147903.6964 | M117: 149604.8022 | N117: 149404.8179 | O117: 144966.693 | P117: 148467.0808 | Q117: 147856.9895 | R117: 148495.8137 | S117: 145966.5514 | T117: 149376.2224
A118: Weighted Average Interest Rate | B118: 0.04592787285 | C118: 0.04493865536 | D118: 0.0445214189 | E118: 0.04269811045 | F118: 0.04219454532 | G118: 0.04169263581 | H118: 0.04154826567 | I118: 0.04136104345 | J118: 0.04120145867 | K118: 0.0417394394 | L118: 0.04336203945 | M118: 0.04501909731 | N118: 0.04842549482 | O118: 0.05097183864 | P118: 0.05270397426 | Q118: 0.05549199937 | R118: 0.05586927694 | S118: 0.05570892651 | T118: 0.0582535353
A119: Weighted Average Maturity Date (years) | B119: 15.80984675 | C119: 15.48673283 | D119: 15.30376254 | E119: 14.9325867 | F119: 14.69678569 | G119: 14.48866779 | H119: 14.44121122 | I119: 14.24612626 | J119: 13.98839539 | K119: 13.77737072 | L119: 13.6466938 | M119: 13.38582341 | N119: 13.06991601 | O119: 12.55040949 | P119: 12.44099186 | Q119: 12.2727752 | R119: 12.09254766 | S119: 11.78619149 | T119: 11.54859182
A120: Weighted Average Seasoning (months) | B120: 59.51956886 | C120: 63.21887697 | D120: 66.48884336 | E120: 69.6014508 | F120: 72.20740564 | G120: 75.21203048 | H120: 78.06842643 | I120: 81.09526313 | J120: 84.01278921 | K120: 87.22132193 | L120: 89.35464734 | M120: 92.17410555 | N120: 95.79520143 | O120: 99.7393098 | P120: 103.443204 | Q120: 106.0115788 | R120: 109.1555558 | S120: 112.3261752 | T120: 115.8873413
A121: % of Interest Only Mortgages (optional switching to repayment) | B121: 0.8849092343 | C121: 0.8970860444 | D121: 0.8917597657 | E121: 0.8981053892 | F121: 0.8935969242 | G121: 0.8935628136 | H121: 0.8935131774 | I121: 0.8951009345 | J121: 0.8942318865 | K121: 0.8979507213 | L121: 0.8944663928 | M121: 0.8972153909 | N121: 0.8969480255 | O121: 0.8950086049 | P121: 0.8977672455 | Q121: 0.8997559622 | R121: 0.903549639 | S121: 0.9046603741 | T121: 0.909719674
A122: % of Repayment Mortgages | B122: 0.1150907657 | C122: 0.1029139556 | D122: 0.1082402343 | E122: 0.1018946108 | F122: 0.1064030758 | G122: 0.1064371864 | H122: 0.1064868226 | I122: 0.1048990655 | J122: 0.1057681135 | K122: 0.1020492787 | L122: 0.1055336072 | M122: 0.1027846091 | N122: 0.1030519745 | O122: 0.1049913951 | P122: 0.1022327545 | Q122: 0.1002440378 | R122: 0.09645036102 | S122: 0.09533962588 | T122: 0.09028032598
A123: % of Mortgages in London | B123: 0.1986761951 | C123: 0.2011998809 | D123: 0.2125543969 | E123: 0.2068620532 | F123: 0.2119471536 | G123: 0.2089491634 | H123: 0.203274169 | I123: 0.2129801747 | J123: 0.2180105195 | K123: 0.2291555166 | L123: 0.2321927307 | M123: 0.2415323566 | N123: 0.2430341235 | O123: 0.2287586152 | P123: 0.2460882869 | Q123: 0.2487270412 | R123: 0.2604494782 | S123: 0.2383866526 | T123: 0.2430384586
A124: % of Mortgages in the South East | B124: 0.3361372762 | C124: 0.3308432264 | D124: 0.3169958893 | E124: 0.3172779962 | F124: 0.3143436913 | G124: 0.3210841862 | H124: 0.3237787674 | I124: 0.3090650876 | J124: 0.3160655737 | K124: 0.3153446769 | L124: 0.3239853727 | M124: 0.3287987912 | N124: 0.3149492973 | O124: 0.3042133792 | P124: 0.2875350295 | Q124: 0.2890946233 | R124: 0.2821665652 | S124: 0.2942520021 | T124: 0.2958951138
A125: % of Owner Occupied Mortgages | B125: 0 | C125: 0 | D125: 0 | E125: 0 | F125: 0 | G125: 0 | H125: 0 | I125: 0 | J125: 0 | K125: 0 | L125: 0 | M125: 0 | N125: 0 | O125: 0 | P125: 0 | Q125: 0 | R125: 0 | S125: 0 | T125: 0
A126: % of Investment Home Loans - Professional Landlords | B126: 0 | C126: 0 | D126: 0 | E126: 0 | F126: 0 | G126: 0 | H126: 0 | I126: 0 | J126: 0 | K126: 0 | L126: 0 | M126: 0 | N126: 0 | O126: 0 | P126: 0 | Q126: 0 | R126: 0 | S126: 0 | T126: 0
A127: % of Investment Home Loans - Emerging Professional Landlords | B127: 1 | C127: 1 | D127: 1 | E127: 1 | F127: 1 | G127: 1 | H127: 1 | I127: 1 | J127: 1 | K127: 1 | L127: 1 | M127: 1 | N127: 1 | O127: 1 | P127: 1 | Q127: 1 | R127: 1 | S127: 1 | T127: 1
A128: Weighted Average Interest Coverage Ratio (calculated at the origination date) | B128: 1.555801884 | C128: 1.562511719 | D128: 1.577237401 | E128: 1.583537698 | F128: 1.585136781 | G128: 1.589311474 | H128: 1.59473883 | I128: 1.602056965 | J128: 1.599968142 | K128: 1.601635466 | L128: 1.582109224 | M128: 1.568720459 | N128: 1.599201355 | O128: 1.602646676 | P128: 1.622496116 | Q128: 1.59407338 | R128: 1.601442311 | S128: 1.61224761 | T128: 1.61621214
A129: Number of Properties in Possession | B129: 0 | C129: 0 | D129: 0 | E129: 0 | F129: 0 | G129: 0 | H129: 0 | I129: 0 | J129: 0 | K129: 0 | L129: 0 | M129: 0 | N129: 0 | O129: 0 | P129: 0 | Q129: 0 | R129: 0 | S129: 0 | T129: 0
A130: Appointment of a Receiver of Rent | B130: 0 | C130: 0 | D130: 0 | E130: 0 | F130: 0 | G130: 0 | H130: 0 | I130: 0 | J130: 0 | K130: 0 | L130: 0 | M130: 0 | N130: 0 | O130: 0 | P130: 1 | Q130: 2 | R130: 2 | S130: 2 | T130: 2
A131: MTL Quarterly Losses | B131: 0 | C131: 0 | D131: 0 | E131: 0 | F131: 0 | G131: 0 | H131: 11 | I131: 0 | J131: 0 | K131: 0 | L131: 0 | M131: 0 | N131: 0 | O131: 0 | P131: 0 | Q131: 0 | R131: 0 | S131: 0 | T131: 0
A132: Arrears excluding Receiver of Rent and Possession Cases
A133: Performing Loans | B133: 0.9938273861 | C133: 0.9934869821 | D133: 0.9927978798 | E133: 1 | F133: 1 | G133: 1 | H133: 0.9971276862 | I133: 1 | J133: 0.9917127238 | K133: 0.989928854 | L133: 0.9906941653 | M133: 0.9903157672 | N133: 0.9844085049 | O133: 0.9832920736 | P133: 0.9821619145 | Q133: 0.9832982883 | R133: 0.9982779192 | S133: 0.9982000168 | T133: 0.984635122
A134: >1 to 2 months arrears | B134: 0 | C134: 0 | D134: 0.007202120193 | E134: 0 | F134: 0 | G134: 0 | H134: 0.002872313825 | I134: 0 | J134: 0 | K134: 0.001687500798 | L134: 0 | M134: 0 | N134: 0.01559149507 | O134: 0 | P134: 0.00867718965 | Q134: 0.00620884619 | R134: 0 | S134: 0 | T134: 0.01342501681
A135: >2 to 3 months arrears | B135: 0 | C135: 0.006513017895 | D135: 0 | E135: 0 | F135: 0 | G135: 0 | H135: 0 | I135: 0 | J135: 0 | K135: 0 | L135: 0 | M135: 0 | N135: 0 | O135: 0.01670792642 | P135: 0.009160895851 | Q135: 0.008849285524 | R135: 0 | S135: 0 | T135: 0
A136: >3 months arrears | B136: 0.006172613887 | C136: 0 | D136: 0 | E136: 0 | F136: 0 | G136: 0 | H136: 0 | I136: 0 | J136: 0.008287276206 | K136: 0.008383645222 | L136: 0.009305834699 | M136: 0.009684232832 | N136: 0 | O136: 0 | P136: 0 | Q136: 0.001643579984 | R136: 0.001722080803 | S136: 0.001799983248 | T136: 0.001939861222
A137: Total | B137: =SUM(B133:B136) -> 1 | C137: 1 | D137: 1 | E137: 1 | F137: 1 | G137: 1 | H137: 1 | I137: 1 | J137: 1 | K137: 1 | L137: 1 | M137: 1 | N137: 1 | O137: 1 | P137: 1 | Q137: 1 | R137: 1 | S137: 1 | T137: 1
A139: Underlying Assets - Paragon Bank Originated Assets (Professional) | B139: =+B108 -> 2019-10-31 | C139: 2020-01-31 | D139: =+D108 -> 2020-04-30 | E139: 2020-07-31 | F139: =+F108 -> 2020-10-30 | G139: 2021-01-29 | H139: =+H108 -> 2021-04-30 | I139: 2021-07-30 | J139: =+J108 -> 2021-10-29 | K139: 2022-01-31 | L139: =+L108 -> 2022-04-29 | M139: 2022-07-29 | N139: =+N108 -> 2022-10-31 | O139: 2023-01-31 | P139: =+P108 -> 2023-04-28 | Q139: 2023-07-31 | R139: =+R108 -> 2023-10-31 | S139: 2024-01-31 | T139: =+T108 -> 2024-04-30
A140: Weighted Average LTV | B140: 0.7151468789 | C140: 0.7168251994 | D140: 0.718775329 | E140: 0.7206861889 | F140: 0.7207841754 | G140: 0.7211734738 | H140: 0.7209710047 | I140: 0.7202056542 | J140: 0.7203752954 | K140: 0.7208877455 | L140: 0.7187984175 | M140: 0.7160870048 | N140: 0.7176608431 | O140: 0.7174623136 | P140: 0.7173607534 | Q140: 0.7173823192 | R140: 0.7201683051 | S140: 0.7203231089 | T140: 0.7211531398
A141: Weighted Average Nationwide Indexed LTV | B141: 0.6918651913 | C141: 0.699720459 | D141: 0.6928584677 | E141: 0.683792864 | F141: 0.6673554721 | G141: 0.6551498085 | H141: 0.6526751908 | I141: 0.6210213891 | J141: 0.6150337139 | K141: 0.6004772345 | L141: 0.5849112072 | M141: 0.560964473 | N141: 0.5576219054 | O141: 0.5713688066 | P141: 0.5901916558 | Q141: 0.58231066 | R141: 0.5878476693 | S141: 0.5936121032 | T141: 0.5916917925
A142: % of Fixed Rate Mortgages (reverting to Term SONIA plus a variable margin) - reverting to Libor linked prior to 1st July 2021 | B142: 0.02952775321 | C142: 0.01431875995 | D142: 0 | E142: 0 | F142: 0 | G142: 0 | H142: 0 | I142: 0 | J142: 0 | K142: 0 | L142: 0 | M142: 0 | N142: 0 | O142: 0 | P142: 0 | Q142: 0 | R142: 0 | S142: 0 | T142: 0
A143: % of Fixed Rate Mortgages (reverting to SVR) | B143: 0.8881383799 | C143: 0.91088385 | D143: 0.9430907872 | E143: 0.9225696303 | F143: 0.9218886715 | G143: 0.9320280564 | H143: 0.940202291 | I143: 0.9357090726 | J143: 0.9336390609 | K143: 0.9370614268 | L143: 0.9485099146 | M143: 0.8635045983 | N143: 0.8678551381 | O143: 0.9000123764 | P143: 0.9003324973 | Q143: 0.9059247237 | R143: 0.921814515 | S143: 0.9076764138 | T143: 0.910216749
A144: % of Term SONIA Linked Mortgages (reverting to Term SONIA plus a variable margin) - Libor linked prior to 1st July 2021 | B144: 0 | C144: 0 | D144: 0 | E144: 0 | F144: 0 | G144: 0 | H144: 0 | I144: 0 | J144: 0 | K144: 0 | L144: 0 | M144: 0 | N144: 0 | O144: 0 | P144: 0 | Q144: 0 | R144: 0 | S144: 0 | T144: 0
A145: % of Term SONIA Linked Mortgages plus a Variable Margin - Libor linked prior to 1st July 2021 | B145: 0 | C145: 0 | D145: 0 | E145: 0 | F145: 0 | G145: 0 | H145: 0 | I145: 0 | J145: 0 | K145: 0 | L145: 0 | M145: 0 | N145: 0 | O145: 0 | P145: 0 | Q145: 0 | R145: 0 | S145: 0 | T145: 0
A146: % of Non Reversionary Term SONIA Linked Mortgages - Libor linked prior to 1st July 2021 | B146: 0 | C146: 0 | D146: 0 | E146: 0 | F146: 0 | G146: 0 | H146: 0 | I146: 0 | J146: 0 | K146: 0 | L146: 0 | M146: 0 | N146: 0 | O146: 0 | P146: 0 | Q146: 0 | R146: 0 | S146: 0 | T146: 0
A147: % of SVR Mortgages | B147: 0.08233386693 | C147: 0.07479739003 | D147: 0.05690921283 | E147: 0.0774303697 | F147: 0.07811132852 | G147: 0.06797194355 | H147: 0.05979770905 | I147: 0.06429092738 | J147: 0.06636093912 | K147: 0.06293857315 | L147: 0.05149008537 | M147: 0.1364954017 | N147: 0.1321448619 | O147: 0.09998762363 | P147: 0.09966750274 | Q147: 0.09407527626 | R147: 0.07818548502 | S147: 0.09232358621 | T147: 0.08978325105
A148: Weighted Average Loan Size | B148: 179115.0121 | C148: 183087.6454 | D148: 185604.3495 | E148: 186979.7061 | F148: 188260.8317 | G148: 189172.2963 | H148: 189349.9281 | I148: 189161.6972 | J148: 190253.1541 | K148: 191832.5559 | L148: 193986.0996 | M148: 192435.9577 | N148: 187290.6938 | O148: 185705.0242 | P148: 186411.5796 | Q148: 186563.3982 | R148: 188217.4993 | S148: 189515.1033 | T148: 191047.7564
A149: Weighted Average Interest Rate | B149: 0.03783255607 | C149: 0.03827806162 | D149: 0.03809246681 | E149: 0.03777349293 | F149: 0.03775909983 | G149: 0.03766437724 | H149: 0.03749979962 | I149: 0.03752641518 | J149: 0.03745309369 | K149: 0.03746421941 | L149: 0.03752875793 | M149: 0.03958192706 | N149: 0.04021841498 | O149: 0.03955309304 | P149: 0.04001862895 | Q149: 0.04041634304 | R149: 0.04057145612 | S149: 0.0417783484 | T149: 0.04235082209
A150: Weighted Average Maturity Date (years) | B150: 18.39259273 | C150: 18.18734833 | D150: 17.9787267 | E150: 17.79440872 | F150: 17.55011822 | G150: 17.30295075 | H150: 17.07106202 | I150: 16.85234087 | J150: 16.58659112 | K150: 16.33106386 | L150: 16.11343767 | M150: 15.85546923 | N150: 15.60502903 | O150: 15.3950418 | P150: 15.10983619 | Q150: 14.88023955 | R150: 14.64356559 | S150: 14.42480605 | T150: 14.20681453
A151: Weighted Average Seasoning (months) | B151: 31.23130792 | C151: 34.44130737 | D151: 37.46767757 | E151: 40.07655596 | F151: 42.9026357 | G151: 45.78327062 | H151: 48.60800912 | I151: 51.51613919 | J151: 54.53672532 | K151: 57.54661211 | L151: 60.46309064 | M151: 63.42638418 | N151: 66.50770503 | O151: 69.49359225 | P151: 72.40548092 | Q151: 75.40469493 | R151: 78.45328777 | S151: 81.44655788 | T151: 84.41237087
A152: % of Interest Only Mortgages (optional switching to repayment) | B152: 0.9432633247 | C152: 0.9437785409 | D152: 0.9451374984 | E152: 0.9476417908 | F152: 0.9486491129 | G152: 0.9515184631 | H152: 0.951533989 | I152: 0.9528679556 | J152: 0.9507586914 | K152: 0.9520068494 | L152: 0.9503836102 | M152: 0.9501574473 | N152: 0.9444142921 | O152: 0.9453509679 | P152: 0.9470841111 | Q152: 0.9469294763 | R152: 0.950839437 | S152: 0.9514573476 | T152: 0.9531479473
A153: % of Repayment Mortgages | B153: 0.05673667531 | C153: 0.05622145912 | D153: 0.05486250163 | E153: 0.05235820924 | F153: 0.05135088706 | G153: 0.04848153685 | H153: 0.04846601101 | I153: 0.04713204442 | J153: 0.04924130859 | K153: 0.04799315065 | L153: 0.04961638976 | M153: 0.04984255273 | N153: 0.0555857079 | O153: 0.05464903208 | P153: 0.05291588886 | Q153: 0.05307052368 | R153: 0.04916056298 | S153: 0.04854265241 | T153: 0.04685205274
A154: % of Mortgages in London | B154: 0.224487644 | C154: 0.2298425194 | D154: 0.2354414114 | E154: 0.237498177 | F154: 0.2373745081 | G154: 0.2364674951 | H154: 0.2396251029 | I154: 0.2381123747 | J154: 0.2432120574 | K154: 0.2451319076 | L154: 0.247938618 | M154: 0.2575472468 | N154: 0.2622570862 | O154: 0.2661036585 | P154: 0.2701736649 | Q154: 0.2662962192 | R154: 0.2666463625 | S154: 0.2689272182 | T154: 0.2724519187
A155: % of Mortgages in the South East | B155: 0.4561373884 | C155: 0.4548160725 | D155: 0.4487359572 | E155: 0.44814569 | F155: 0.4467709478 | G155: 0.4495558087 | H155: 0.4454912767 | I155: 0.4474372256 | J155: 0.4463398573 | K155: 0.451527998 | L155: 0.4546489055 | M155: 0.4268388587 | N155: 0.3833891075 | O155: 0.3841037785 | P155: 0.3845220674 | Q155: 0.3881536451 | R155: 0.3870700664 | S155: 0.387023539 | T155: 0.389053046
A156: % of Owner Occupied Mortgages | B156: 0 | C156: 0 | D156: 0 | E156: 0 | F156: 0 | G156: 0 | H156: 0 | I156: 0 | J156: 0 | K156: 0 | L156: 0 | M156: 0 | N156: 0 | O156: 0 | P156: 0 | Q156: 0 | R156: 0 | S156: 0 | T156: 0
A157: % of Investment Home Loans - Professional Landlords | B157: 1 | C157: 1 | D157: 1 | E157: 1 | F157: 1 | G157: 1 | H157: 1 | I157: 1 | J157: 1 | K157: 1 | L157: 1 | M157: 1 | N157: 1 | O157: 1 | P157: 1 | Q157: 1 | R157: 1 | S157: 1 | T157: 1
A158: % of Investment Home Loans - Emerging Professional Landlords | B158: 0 | C158: 0 | D158: 0 | E158: 0 | F158: 0 | G158: 0 | H158: 0 | I158: 0 | J158: 0 | K158: 0 | L158: 0 | M158: 0 | N158: 0 | O158: 0 | P158: 0 | Q158: 0 | R158: 0 | S158: 0 | T158: 0
A159: Weighted Average Interest Coverage Ratio (calculated at the origination date) | B159: 1.613960836 | C159: 1.619742251 | D159: 1.622279266 | E159: 1.630009337 | F159: 1.635666773 | G159: 1.639307289 | H159: 1.641536971 | I159: 1.651147302 | J159: 1.651787714 | K159: 1.651620731 | L159: 1.649653831 | M159: 1.658454945 | N159: 1.676103037 | O159: 1.671314635 | P159: 1.671847542 | Q159: 1.674111736 | R159: 1.675887771 | S159: 1.679139781 | T159: 1.680791013
A160: Number of Properties in Possession | B160: 0 | C160: 0 | D160: 0 | E160: 0 | F160: 0 | G160: 0 | H160: 0 | I160: 0 | J160: 0 | K160: 0 | L160: 0 | M160: 0 | N160: 0 | O160: 0 | P160: 0 | Q160: 0 | R160: 1 | S160: 1 | T160: 1
A161: Appointment of a Receiver of Rent | B161: 0 | C161: 0 | D161: 0 | E161: 0 | F161: 0 | G161: 0 | H161: 0 | I161: 0 | J161: 0 | K161: 0 | L161: 0 | M161: 0 | N161: 0 | O161: 0 | P161: 0 | Q161: 1 | R161: 0 | S161: 0 | T161: 0
A162: Paragon Bank Quarterly Losses | B162: 0 | C162: 0 | D162: 0 | E162: 0 | F162: 2 | G162: -2 | H162: 0 | I162: 0 | J162: 0 | K162: 0 | L162: 0 | M162: 19 | N162: -19 | O162: 0 | P162: 0 | Q162: 0 | R162: 0 | S162: 0 | T162: 0
A163: Arrears excluding Receiver of Rent and Possession Cases
A164: Performing Loans | B164: 1 | C164: 0.9987492671 | D164: 0.9987122621 | E164: 0.9986680448 | F164: 0.9946629064 | G164: 0.99456264 | H164: 0.9944893156 | I164: 0.996432639 | J164: 0.9963780946 | K164: 0.9948386392 | L164: 0.9962286951 | M164: 0.9958011916 | N164: 0.9948157081 | O164: 0.9967743279 | P164: 0.9967242967 | Q164: 0.9966671322 | R164: 0.9965823681 | S164: 0.9983506321 | T164: 0.9946103029
A165: >1 to 2 months arrears | B165: 0 | C165: 0.001250732884 | D165: 0 | E165: 0 | F165: 0.003965160982 | G165: 0 | H165: 0 | I165: 0 | J165: 0 | K165: 0.001457372357 | L165: 0 | M165: 0 | N165: 0 | O165: 0 | P165: 0 | Q165: 0 | R165: 0 | S165: 0 | T165: 0.003721479935
A166: >2 to 3 months arrears | B166: 0 | C166: 0 | D166: 0 | E166: 0 | F166: 0 | G166: 0.002034078345 | H166: 0 | I166: 0 | J166: 0 | K166: 0 | L166: 0 | M166: 0 | N166: 0 | O166: 0 | P166: 0 | Q166: 0 | R166: 0.003417631919 | S166: 0 | T166: 0
A167: >3 months arrears | B167: 0 | C167: 0 | D167: 0.001287737925 | E167: 0.001331955228 | F167: 0.001371932576 | G167: 0.003403281644 | H167: 0.005510684427 | I167: 0.003567361031 | J167: 0.003621905433 | K167: 0.003703988422 | L167: 0.003771304873 | M167: 0.00419880839 | N167: 0.00518429186 | O167: 0.003225672065 | P167: 0.003275703327 | Q167: 0.003332867814 | R167: 0 | S167: 0.001649367902 | T167: 0.001668217185
A168: Total | B168: =SUM(B164:B167) -> 1 | C168: 1 | D168: 1 | E168: 1 | F168: 1 | G168: 1 | H168: 1 | I168: 1 | J168: 1 | K168: 1 | L168: 1 | M168: 1 | N168: 1 | O168: 1 | P168: =SUM(P164:P167) -> 1 | Q168: =SUM(Q164:Q167) -> 1 | R168: =SUM(R164:R167) -> 1 | S168: 1 | T168: 1
A170: Underlying Assets - Paragon Bank Originated Assets (Emerging Professional) | B170: =+B139 -> 2019-10-31 | C170: 2020-01-31 | D170: =+D139 -> 2020-04-30 | E170: 2020-07-31 | F170: 2020-10-30 | G170: =+G139 -> 2021-01-29 | H170: 2021-04-30 | I170: =+I139 -> 2021-07-30 | J170: 2021-10-29 | K170: =+K139 -> 2022-01-31 | L170: 2022-04-29 | M170: =+M139 -> 2022-07-29 | N170: 2022-10-31 | O170: =+O139 -> 2023-01-31 | P170: 2023-04-28 | Q170: =+Q139 -> 2023-07-31 | R170: 2023-10-31 | S170: =+S139 -> 2024-01-31 | T170: 2024-04-30
A171: Weighted Average LTV | B171: 0.7101140093 | C171: 0.7104186697 | D171: 0.7114798916 | E171: 0.7123246888 | F171: 0.7133279706 | G171: 0.7137028978 | H171: 0.7137327005 | I171: 0.7139416265 | J171: 0.7138385458 | K171: 0.7130593893 | L171: 0.7121249404 | M171: 0.7112352806 | N171: 0.7148186962 | O171: 0.7156052073 | P171: 0.7148935535 | Q171: 0.7139946769 | R171: 0.7165431232 | S171: 0.7169465131 | T171: 0.7165652765
A172: Weighted Average Nationwide Indexed LTV | B172: 0.6856098693 | C172: 0.6918802399 | D172: 0.6843578288 | E172: 0.67530068 | F172: 0.6618286043 | G172: 0.6506954831 | H172: 0.6485542216 | I172: 0.6178728174 | J172: 0.6120762497 | K172: 0.5969271368 | L172: 0.5826628487 | M172: 0.5613864308 | N172: 0.5576848989 | O172: 0.5725914176 | P172: 0.5926525746 | Q172: 0.5835702443 | R172: 0.5880427551 | S172: 0.5941534302 | T172: 0.5910264055
A173: % of Fixed Rate Mortgages (reverting to Term SONIA plus a variable margin) - reverting to Libor linked prior to 1st July 2021 | B173: 0.02224749733 | C173: 0.00760035566 | D173: 0 | E173: 0 | F173: 0 | G173: 0 | H173: 0 | I173: 0 | J173: 0 | K173: 0 | L173: 0 | M173: 0 | N173: 0 | O173: 0 | P173: 0 | Q173: 0 | R173: 0 | S173: 0 | T173: 0
A174: % of Fixed Rate Mortgages (reverting to SVR) | B174: 0.9096089405 | C174: 0.913767312 | D174: 0.9319441684 | E174: 0.9060170556 | F174: 0.9252517481 | G174: 0.9302825249 | H174: 0.934340929 | I174: 0.9296145288 | J174: 0.9327462989 | K174: 0.9341149565 | L174: 0.9409664516 | M174: 0.7945176327 | N174: 0.7903843428 | O174: 0.8362985135 | P174: 0.8587135403 | Q174: 0.8545768886 | R174: 0.8466034078 | S174: 0.8469824187 | T174: 0.8385357524
A175: % of Term SONIA Linked Mortgages (reverting to Term SONIA plus a variable margin) - Libor linked prior to 1st July 2021 | B175: 0 | C175: 0 | D175: 0 | E175: 0 | F175: 0 | G175: 0 | H175: 0 | I175: 0 | J175: 0 | K175: 0 | L175: 0 | M175: 0 | N175: 0 | O175: 0 | P175: 0 | Q175: 0 | R175: 0 | S175: 0 | T175: 0
A176: % of Term SONIA Linked Mortgages plus a Variable Margin - Libor linked prior to 1st July 2021 | B176: 0 | C176: 0 | D176: 0 | E176: 0 | F176: 0 | G176: 0 | H176: 0 | I176: 0 | J176: 0 | K176: 0 | L176: 0 | M176: 0 | N176: 0 | O176: 0 | P176: 0 | Q176: 0 | R176: 0 | S176: 0 | T176: 0
A177: % of Non Reversionary Term SONIA Linked Mortgages - Libor linked prior to 1st July 2021 | B177: 0 | C177: 0 | D177: 0 | E177: 0 | F177: 0 | G177: 0 | H177: 0 | I177: 0 | J177: 0 | K177: 0 | L177: 0 | M177: 0 | N177: 0 | O177: 0 | P177: 0 | Q177: 0 | R177: 0 | S177: 0 | T177: 0
A178: % of SVR Mortgages | B178: 0.06814356217 | C178: 0.07863233236 | D178: 0.06805583162 | E178: 0.09398294438 | F178: 0.07474825192 | G178: 0.06971747509 | H178: 0.06565907102 | I178: 0.07038547121 | J178: 0.06725370109 | K178: 0.06588504348 | L178: 0.05903354838 | M178: 0.2054823673 | N178: 0.2096156572 | O178: 0.1637014865 | P178: 0.1412864597 | Q178: 0.1454231114 | R178: 0.1533965922 | S178: 0.1530175813 | T178: 0.1614642476
A179: Weighted Average Loan Size | B179: 178291.8844 | C179: 184520.3428 | D179: 185492.7947 | E179: 188840.9709 | F179: 189919.1479 | G179: 190798.7281 | H179: 192169.9038 | I179: 193339.2042 | J179: 193871.5698 | K179: 196200.24 | L179: 197042.177 | M179: 192914.8351 | N179: 182323.6912 | O179: 181631.1052 | P179: 182203.2506 | Q179: 182102.86 | R179: 183802.0261 | S179: 185272.9627 | T179: 186442.606
A180: Weighted Average Interest Rate | B180: 0.03577931049 | C180: 0.03716865744 | D180: 0.03720042351 | E180: 0.03668661256 | F180: 0.03634314171 | G180: 0.03624494324 | H180: 0.03617149452 | I180: 0.03631765168 | J180: 0.03633211169 | K180: 0.03648009488 | L180: 0.03665685676 | M180: 0.04072033468 | N180: 0.04326284367 | O180: 0.04235732833 | P180: 0.04198097424 | Q180: 0.04306272694 | R180: 0.0439495681 | S180: 0.04459842792 | T180: 0.04558052023
A181: Weighted Average Maturity Date (years) | B181: 19.62211307 | C181: 19.37937772 | D181: 19.20962844 | E181: 19.06781091 | F181: 18.92994845 | G181: 18.69410196 | H181: 18.49099588 | I181: 18.32167326 | J181: 18.09157665 | K181: 17.82797544 | L181: 17.63332969 | M181: 17.34045108 | N181: 17.03381219 | O181: 16.69191048 | P181: 16.43071912 | Q181: 16.17492149 | R181: 15.93558824 | S181: 15.71074415 | T181: 15.46770358
A182: Weighted Average Seasoning (months) | B182: 32.08094863 | C182: 35.5955582 | D182: 38.74020586 | E182: 41.18146483 | F182: 43.70019373 | G182: 46.65020153 | H182: 49.48565164 | I182: 52.36960791 | J182: 55.46988337 | K182: 58.54468856 | L182: 61.47155174 | M182: 64.68369909 | N182: 68.36827384 | O182: 71.53443059 | P182: 74.53967561 | Q182: 77.41871843 | R182: 80.51358301 | S182: 83.62935439 | T182: 86.68193052
A183: % of Interest Only Mortgages (optional switching to repayment) | B183: 0.91060487 | C183: 0.9146712052 | D183: 0.9139686808 | E183: 0.9184475735 | F183: 0.9188357407 | G183: 0.9243647053 | H183: 0.927786392 | I183: 0.9290804953 | J183: 0.9312205429 | K183: 0.9330110286 | L183: 0.9340117444 | M183: 0.9277756954 | N183: 0.9239892745 | O183: 0.9348557221 | P183: 0.9347849444 | Q183: 0.9377341313 | R183: 0.9398285567 | S183: 0.9398346912 | T183: 0.9377961942
A184: % of Repayment Mortgages | B184: 0.08939512999 | C184: 0.08532879479 | D184: 0.08603131922 | E184: 0.08155242652 | F184: 0.08116425925 | G184: 0.07563529468 | H184: 0.07221360797 | I184: 0.07091950475 | J184: 0.06877945711 | K184: 0.06698897143 | L184: 0.06598825558 | M184: 0.07222430463 | N184: 0.0760107255 | O184: 0.06514427793 | P184: 0.06521505557 | Q184: 0.06226586872 | R184: 0.06017144326 | S184: 0.06016530882 | T184: 0.06220380583
A185: % of Mortgages in London | B185: 0.231050231 | C185: 0.2422438919 | D185: 0.2470512503 | E185: 0.2574571986 | F185: 0.2638093169 | G185: 0.2643877085 | H185: 0.2679230794 | I185: 0.2732668902 | J185: 0.2755128008 | K185: 0.2757193483 | L185: 0.2790356414 | M185: 0.2973962062 | N185: 0.2709147295 | O185: 0.2845929398 | P185: 0.2851942937 | Q185: 0.2873952112 | R185: 0.2889184193 | S185: 0.2928040709 | T185: 0.2931548666
A186: % of Mortgages in the South East | B186: 0.4721102123 | C186: 0.4806908339 | D186: 0.4834319895 | E186: 0.4859538529 | F186: 0.4836256134 | G186: 0.4835858266 | H186: 0.4880567008 | I186: 0.4981201018 | J186: 0.4984327403 | K186: 0.5051690438 | L186: 0.5071727104 | M186: 0.478570699 | N186: 0.4733858459 | O186: 0.4601274318 | P186: 0.4643092312 | Q186: 0.4637577576 | R186: 0.4645239273 | S186: 0.4657367355 | T186: 0.4667677754
A187: % of Owner Occupied Mortgages | B187: 0 | C187: 0 | D187: 0 | E187: 0 | F187: 0 | G187: 0 | H187: 0 | I187: 0 | J187: 0 | K187: 0 | L187: 0 | M187: 0 | N187: 0 | O187: 0 | P187: 0 | Q187: 0 | R187: 0 | S187: 0 | T187: 0
A188: % of Investment Home Loans - Professional Landlords | B188: 0 | C188: 0 | D188: 0 | E188: 0 | F188: 0 | G188: 0 | H188: 0 | I188: 0 | J188: 0 | K188: 0 | L188: 0 | M188: 0 | N188: 0 | O188: 0 | P188: 0 | Q188: 0 | R188: 0 | S188: 0 | T188: 0
A189: % of Investment Home Loans - Emerging Professional Landlords | B189: 1 | C189: 1 | D189: 1 | E189: 1 | F189: 1 | G189: 1 | H189: 1 | I189: 1 | J189: 1 | K189: 1 | L189: 1 | M189: 1 | N189: 1 | O189: 1 | P189: 1 | Q189: 1 | R189: 1 | S189: 1 | T189: 1
A190: Weighted Average Interest Coverage Ratio (calculated at the origination date) | B190: 1.482567504 | C190: 1.487590085 | D190: 1.488722407 | E190: 1.495070727 | F190: 1.499795981 | G190: 1.500598251 | H190: 1.501581743 | I190: 1.496522202 | J190: 1.497604982 | K190: 1.501126234 | L190: 1.502922307 | M190: 1.504956581 | N190: 1.497299672 | O190: 1.494498264 | P190: 1.495103681 | Q190: 1.496944573 | R190: 1.497711844 | S190: 1.49803158 | T190: 1.498061728
A191: Number of Properties in Possession | B191: 0 | C191: 0 | D191: 0 | E191: 0 | F191: 0 | G191: 0 | H191: 0 | I191: 0 | J191: 0 | K191: 0 | L191: 0 | M191: 0 | N191: 0 | O191: 0 | P191: 0 | Q191: 0 | R191: 0 | S191: 0 | T191: 0
A192: Appointment of a Receiver of Rent | B192: 0 | C192: 0 | D192: 0 | E192: 0 | F192: 0 | G192: 0 | H192: 0 | I192: 0 | J192: 0 | K192: 0 | L192: 0 | M192: 1 | N192: 1 | O192: 2 | P192: 1 | Q192: 0 | R192: 0 | S192: 1 | T192: 1
A193: Paragon Bank Quarterly Losses | B193: 0 | C193: 0 | D193: 0 | E193: 4 | F193: 0 | G193: -2 | H193: 0 | I193: 1 | J193: 0 | K193: 0 | L193: 0 | M193: 1 | N193: 0 | O193: -1 | P193: 0 | Q193: 19 | R193: 0 | S193: 0 | T193: 0
A194: Arrears excluding Receiver of Rent and Possession Cases
A195: Performing Loans | B195: 1 | C195: 1 | D195: 1 | E195: 0.9989577681 | F195: 0.9957324052 | G195: 0.9924208842 | H195: 0.9903908678 | I195: 0.9900245485 | J195: 0.9935134329 | K195: 0.9929308821 | L195: 0.9904525098 | M195: 0.9952753437 | N195: 0.9869530123 | O195: 0.9956319582 | P195: 0.9925288195 | Q195: 0.9954531066 | R195: 0.9859087688 | S195: 0.9952571998 | T195: 0.9896743044
A196: >1 to 2 months arrears | B196: 0 | C196: 0 | D196: 0 | E196: 0.001042231943 | F196: 0.003166597809 | G196: 0.003218784414 | H196: 0.003301135744 | I196: 0.004191128674 | J196: 0.0009033673673 | K196: 0.001304747101 | L196: 0.00451885495 | M196: 0 | N196: 0.002160374155 | O196: 0.004368041816 | P196: 0 | Q196: 0 | R196: 0.002451579412 | S196: 0 | T196: 0
A197: >2 to 3 months arrears | B197: 0 | C197: 0 | D197: 0 | E197: 0 | F197: 0.001100996973 | G197: 0 | H197: 0.001848341433 | I197: 0 | J197: 0.0008217173427 | K197: 0 | L197: 0 | M197: 0 | N197: 0.006213492162 | O197: 0 | P197: 0.003005801008 | Q197: 0 | R197: 0.006989899179 | S197: 0 | T197: 0
A198: >3 months arrears | B198: 0 | C198: 0 | D198: 0 | E198: 0 | F198: 0 | G198: 0.004360331386 | H198: 0.004459655029 | I198: 0.005784322855 | J198: 0.004761482347 | K198: 0.005764370777 | L198: 0.005028635276 | M198: 0.004724656315 | N198: 0.004673121432 | O198: 0 | P198: 0.004465379503 | Q198: 0.004546893412 | R198: 0.004649752591 | S198: 0.004742800191 | T198: 0.01032569557
A199: Total | B199: =SUM(B195:B198) -> 1 | C199: 1 | D199: 1 | E199: 1 | F199: 1 | G199: 1 | H199: 1 | I199: 1 | J199: 1 | K199: 1 | L199: 1 | M199: 1 | N199: 1 | O199: 1 | P199: 1 | Q199: 1 | R199: 1 | S199: 1 | T199: 1

Sheet Graphs
K2: PARAGON MORTGAGES (NO.26) PLC
